Cogmind - Beta 16.1 @@@ ROGUE MODE // 2026.03.13 @ 21:13:18 Player: TheSkyeDoctor Result: Destroyed by G-47 Trooper with Particle Gun Performance ------------- Evolutions (2) 1000 Regions Visited (4) 800 Robots Destroyed (15) 75 Value Destroyed (306) 306 Prototype IDs (1) 20 Alien Tech Used (0) 0 Bonus (177) 177 TOTAL SCORE: 2378 Bonus ------- Follower Combat Kills 177 Cogmind --------- Core Integrity 0/550 Matter 162/300 Energy 100/100 System Corruption 0% Temperature Cool (76) Movement Core (150) Ox2 Location -8/Materials Parts ------- > --- POWER (1) -------- (None) > --- PROPULSION (4) --- (None) > --- UTILITY (4) ------ Small Storage Unit Trap Scanner Improved Terrain Scanner System Shield > --- WEAPON (2) ------- (None) > --- INVENTORY (8) ---- Light Ion Engine Compact Matter Pod (150) Experimental Sensor Array Datajack Mining Laser Peak State ------------ > --- POWER ------------ Light Deuterium Engine > --- PROPULSION ------- (None) > --- UTILITY ---------- Small Storage Unit Trap Scanner Improved Terrain Scanner System Shield > --- WEAPON ----------- Advanced Beam Rifle Assault Cannon > --- INVENTORY -------- Light Ion Engine Compact Matter Pod Experimental Sensor Array Datajack Mining Laser [Rating: 21] Favorites ----------- Power Light Ion Engine Engine Light Ion Engine Propulsion Flight Unit Treads Light Treads Wheel Wheel Flight Unit Flight Unit Utility Small Storage Unit Device Seismic Detector Storage Small Storage Unit Hackware System Shield Protection Light Armor Plating Weapon Light Assault Rifle Energy Gun Advanced Beam Rifle Ballistic Gun Light Assault Rifle Ballistic Cannon Assault Cannon Launcher Rocket Launcher Slashing Weapon Scythe Build | -11 -10 -10 -9 -8 ------- Run | Yrd Mat Min Mat Mat Slots Evolved 4 | . . . 2 2 Power . | . . . . . Propulsion 2 | . . . . 2 Utility 2 | . . . 2 . Weapon . | . . . . . Parts Attached 26 | 7 . 2 4 13 Power 3 | 1 . . . 2 Engine 3 | 1 . . . 2 Core . | . . . . . Reactor . | . . . . . Propulsion 8 | 2 . 2 2 2 Treads 2 | 2 . . . . Leg . | . . . . . Wheel 1 | . . . . 1 Hover . | . . . . . Flight 5 | . . 2 2 1 Utility 8 | 2 . . 2 4 Device 4 | 1 . . 1 2 Storage 1 | 1 . . . . Processor . | . . . . . Hackware 1 | . . . . 1 Protection 2 | . . . 1 1 Artifact . | . . . . . Weapon 7 | 2 . . . 5 Energy Gun 2 | . . . . 2 Energy Cannon . | . . . . . Ballistic Gun 2 | 2 . . . . Ballistic Cannon 1 | . . . . 1 Launcher 1 | . . . . 1 Special Weapon . | . . . . . Impact Weapon . | . . . . . Slashing Weapon 1 | . . . . 1 Piercing Weapon . | . . . . . Special Melee Weapon . | . . . . . Unidentified Prototypes 1 | . . . . 1 Parts Lost 18 | . . . 3 15 Power 2 | . . . . 2 Propulsion 6 | . . . 2 4 Utility 4 | . . . 1 3 Weapon 6 | . . . . 6 Highest Loss Streak 11 | . . . 1 11 To Critical Strikes . | . . . . . Average Backups 5 | 2 5 7 6 4 Power . | . 1 1 1 1 Propulsion 2 | 1 2 4 2 . Utility 1 | . 1 . 2 2 Weapon . | . 1 1 1 1 Tool/Special . | . . . . . Unused Backups 7 | . . 2 . 5 Power 1 | . . . . 1 Propulsion 1 | . . 1 . . Utility 3 | . . 1 . 2 Weapon 1 | . . . . 1 Tool/Special 1 | . . . . 1 Average Slot Usage (%) 83 | . 100 100 95 58 Engine 9 | . 14 14 11 4 Treads 6 | . 28 14 . . Flight 14 | . . 13 22 11 Device 13 | . 14 14 20 8 Storage 11 | . 14 14 11 9 Hackware 1 | . . . . 3 Protection 4 | . . . 8 5 Energy Gun 2 | . . . . 5 Ballistic Gun 16 | . 28 28 22 2 Ballistic Cannon 1 | . . . . 4 Slashing Weapon 1 | . . . . 2 Peak Build Rating 21 | 7 7 8 12 21 Average Rating 10 | 5 7 7 11 14 On Entrance 6 | . 7 7 8 11 Avg Prop Armor Cover (%) . | . . . . . Naked Turns . | . . . . . Heaviest Build 29 | 11 11 11 19 29 Greatest Support 40 | 40 40 40 8 12 Greatest Overweight (x) 6 | . . 1 2 6 Average Overweight (x) 1 | . . . 1 2 Largest Inventory Capacity 8 | 8 8 8 8 8 Average Capacity 7 | 7 8 8 8 8 Most Carried 8 | 5 5 8 8 6 Average Carried 5 | 3 5 7 6 4 Final Capacity 8 | 8 8 8 8 8 Final Carried 8 | 5 5 8 6 5 Class Distribution -------------------- 66% | Mutant 33% | Scavenger-Mutant Dominant Class ---------------- Mutant | -10/Materials Mutant | -10/Mines Scavenger-Mutant | -9/Materials Mutant | -8/Materials Resources | -11 -10 -10 -9 -8 ----------- Run | Yrd Mat Min Mat Mat Matter Collected 429 | 282 . 66 42 39 Remotely . | . . . . . Salvage Created 287 | 51 . 73 . 163 Parts 24 | 5 . 9 . 10 Haulers Intercepted . | . . . . . Recyclers Shooed . | . . . . . Parts Field Recycled . | . . . . . Retrieved Matter . | . . . . . Parts Self-Destructed . | . . . . . Prevented . | . . . . . Parts Restored . | . . . . . Kills | -11 -10 -10 -9 -8 ------- Run | Yrd Mat Min Mat Mat Combat Hostiles Destroyed 12 | . . 5 . 7 Melee 1 | . . . . 1 Guns 5 | . . 5 . . Cannons 1 | . . . . 1 AOE 5 | . . . . 5 Classes Destroyed 6 | 1 . 1 . 4 Tunneler 2 | 2 . . . . Operator 1 | . . . . 1 Swarmer 8 | . . 5 . 3 Grunt 2 | . . . . 2 Duelist 1 | . . . . 1 Sentry 1 | . . . . 1 Best Kill Streak 6 | 2 . 3 . 6 Combat Bots Only 6 | . . 3 . 6 Max Kills in Single Turn 2 | 1 . 1 . 2 Gunslinging . | . . . . . Exploded 2 | . . . . 2 Melee 1 | . . . . 1 Uniques/NPCs Destroyed . | . . . . . Combat | -11 -10 -10 -9 -8 -------- Run | Yrd Mat Min Mat Mat Hostile Shots Fired 201 | . . 57 17 127 Missed 49 | . . 13 5 31 Hits 152 | . . 44 12 96 Melee 7 | . . . . 7 Projectile 145 | . . 44 12 89 Critical Strikes 4 | . . . 1 3 Damage Taken 1862 | . . 359 144 1359 Core 644 | . . 41 44 559 Absorbed by Shields . | . . . . . Redirected to Shielding 58 | . . . . 58 Core Remaining (%) 90 | 100 . 83 89 . Volleys Fired 57 | 6 1 22 6 22 Largest 2 | 2 2 2 2 2 Hottest 98 | 40 40 40 40 98 Shots Fired 100 | 12 2 44 12 30 Gun 83 | 12 2 44 12 13 Cannon 14 | . . . . 14 Launcher 3 | . . . . 3 Special . | . . . . . Kinetic 88 | 12 2 44 12 18 Thermal 9 | . . . . 9 Explosive 3 | . . . . 3 Electromagnetic . | . . . . . Robot Hit Streak 6 | 6 . 3 4 6 Robot Miss Streak 5 | 1 2 5 1 4 Penetration Max . | . . . . . Secondary Targets . | . . . . . Shots Hit Robots 63 | 9 . 21 8 25 Core Hits 26 | 5 . 8 2 11 Critical Kills . | . . . . . Critical Parts Destroyed . | . . . . . Critical Strikes 2 | . . . . 2 Burn 1 | . . . . 1 Sever 1 | . . . . 1 Melee Attacks 7 | . . . . 7 Impact . | . . . . . Slashing 7 | . . . . 7 Piercing . | . . . . . Sneak Attacks . | . . . . . Combat Hostiles . | . . . . . Follow-up Attacks . | . . . . . Damage Inflicted 1190 | 76 . 163 77 874 Guns 411 | 76 . 163 77 95 Cannons 235 | . . . . 235 Explosions 373 | . . . . 373 Melee 171 | . . . . 171 Ramming . | . . . . . Kinetic 572 | 76 . 163 77 256 Thermal 74 | . . . . 74 Explosive 373 | . . . . 373 Electromagnetic . | . . . . . Impact . | . . . . . Slashing 171 | . . . . 171 Piercing . | . . . . . Highest Corruption . | . . . . . Average Corruption . | . . . . . Corruption Purged . | . . . . . Corruption Blocked . | . . . . . Overload Shots . | . . . . . Overflow Damage 73 | . . . . 73 Projectiles 10 | . . . . 10 Explosions 63 | . . . . 63 Melee . | . . . . . Knockbacks 4 | . . . . 4 Impact . | . . . . . Kinetic 4 | . . . . 4 Secondary . | . . . . . Self-Inflicted Damage 90 | . . . . 90 Shots 2 | . . . . 2 Rammed 1 | . . . . 1 Targets Rammed 1 | . . . . 1 Kicked . | . . . . . Crushed . | . . . . . Highest Temperature 133 | . . 8 17 133 Average Temperature 30 | . . 4 8 47 Received Heat Transfer 432 | . . . 63 369 Siege Activations . | . . . . . Martial Activations . | . . . . . Shielding Activations . | . . . . . Robots Disrupted . | . . . . . Combat Hostiles . | . . . . . Robots Corrupted . | . . . . . Combat Hostiles . | . . . . . Parts Fried . | . . . . . Impact Corruptions . | . . . . . Robots Melted . | . . . . . Combat Hostiles . | . . . . . Parts Melted . | . . . . . Heat Transferred 222 | . . . . 222 Parts Sabotaged . | . . . . . Parts Stolen . | . . . . . Parts Stripped . | . . . . . Power Chain Reactions . | . . . . . Alert | -11 -10 -10 -9 -8 ------- Run | Yrd Mat Min Mat Mat Maximum Alert Level . | . . . . . Low Security (%) 100 | 100 100 100 100 100 Level 1 . | . . . . . Level 2 . | . . . . . Level 3 . | . . . . . Level 4 . | . . . . . Level 5 . | . . . . . High Security . | . . . . . Max Security . | . . . . . Peak Influence 151 | 5 . 71 148 151 Initial 15 | . . . 15 15 Average 44 | . . 16 90 55 Influence Increases 641 | 10 . 131 268 232 Destroy 0b10 Robot/C 420 | . . 100 180 140 Destroy 0b10 Robot/NC 20 | 10 . . 5 5 Destroy Leader 102 | . . 20 52 30 Allied During Kill 42 | . . 11 31 . Successful Hack 5 | . . . . 5 Disable Machine 15 | . . . . 15 Destroy Structure 22 | . . . . 22 Lose Combat Pursuer 15 | . . . . 15 Influence Decreases 616 | 10 . 90 271 245 Entered New Map 49 | . . . 26 23 Time Decay 417 | 10 . 90 155 162 Lost Part 90 | . . . 30 60 Lost Ally 60 | . . . 60 . Squads Dispatched 1 | . . . 1 . Investigation . | . . . . . Extermination . | . . . . . Reinforcement 1 | . . . 1 . Assault . | . . . . . Garrison . | . . . . . Intercept . | . . . . . Searches Triggered . | . . . . . Construction Impeded . | . . . . . Haulers Reinforced . | . . . . . Active Scanning Responses . | . . . . . Cargo Convoy Interrupts . | . . . . . Stealth | -11 -10 -10 -9 -8 --------- Run | Yrd Mat Min Mat Mat Distress Signals 2 | . . . 2 . Communications Jammed . | . . . . . Distress Signals . | . . . . . Times Spotted 36 | . 1 6 16 13 Peak Tracking Total 7 | . 1 3 7 6 Tactical Retreats 1 | . . . . 1 Traps | -11 -10 -10 -9 -8 ------- Run | Yrd Mat Min Mat Mat Traps Triggered . | . . . . . Indirectly . | . . . . . Trap Hack Attempts . | . . . . . Triggered . | . . . . . Disarmed . | . . . . . Reprogrammed . | . . . . . Reused . | . . . . . Traps Extracted . | . . . . . Installed . | . . . . . Triggered . | . . . . . Machines | -11 -10 -10 -9 -8 ---------- Run | Yrd Mat Min Mat Mat Machines Disabled 1 | . . . . 1 Max in Single Turn 1 | . . . . 1 Machines Repaired . | . . . . . Machines Dismantled . | . . . . . Machines Sabotaged . | . . . . . Overloaded Fab Kills . | . . . . . Hacking | -11 -10 -10 -9 -8 --------- Run | Yrd Mat Min Mat Mat Machines Accessed 3 | . . . 1 2 Terminals 3 | . . . 1 2 Fabricators . | . . . . . Repair Stations . | . . . . . Recycling Units . | . . . . . Scanalyzers . | . . . . . Garrison Access . | . . . . . Total Hacks 5 | . . . 2 3 Successful 2 | . . . . 2 Failed 3 | . . . 2 1 Catastrophic . | . . . . . Database Lockouts . | . . . . . Manual 5 | . . . 2 3 Terminals 5 | . . . 2 3 Fabricators . | . . . . . Repair Stations . | . . . . . Recycling Units . | . . . . . Scanalyzers . | . . . . . Garrison Access . | . . . . . Terminal Hacks . | . . . . . Fabricator Hacks . | . . . . . Repair Station Hacks . | . . . . . Recycling Unit Hacks . | . . . . . Scanalyzer . | . . . . . Garrison Access Hacks . | . . . . . Unauthorized Hacks 2 | . . . . 2 Terminals 2 | . . . . 2 Botnet 2 | . . . . 2 Fabricators . | . . . . . Repair Stations . | . . . . . Recycling Units . | . . . . . Scanalyzers . | . . . . . Garrison Access . | . . . . . Data Cores Recovered 1 | . . . . 1 Used . | . . . . . Hacking Detections 1 | . . . 1 . Full Trace Events . | . . . . . Feedback Events . | . . . . . Feedback Blocked . | . . . . . Robot Schematics Acquired . | . . . . . Robots Built . | . . . . . Authchips . | . . . . . Time . | . . . . . Total Robot Build Rating . | . . . . . Part Schematics Acquired . | . . . . . Parts Built . | . . . . . Authchips . | . . . . . Time . | . . . . . Total Part Build Rating . | . . . . . Part Studies Acquired . | . . . . . Parts Repaired . | . . . . . Time . | . . . . . Parts Recycled . | . . . . . Recycled Matter . | . . . . . Retrieved Matter . | . . . . . Retrieved Components . | . . . . . Parts Scanalyzed . | . . . . . Part Schematics Acquired . | . . . . . Parts Damaged . | . . . . . Bothacking | -11 -10 -10 -9 -8 ------------ Run | Yrd Mat Min Mat Mat Used RIF Installer . | . . . . . Robots Hacked . | . . . . . Non-combat . | . . . . . Combat . | . . . . . Robot Hacks Applied . | . . . . . Relay Couplers Released . | . . . . . Fabnet Peak Effective % . | . . . . . Robots Rewired . | . . . . . Allies Hacked . | . . . . . Hacks Repelled . | . . . . . Allies | -11 -10 -10 -9 -8 -------- Run | Yrd Mat Min Mat Mat Total Allies 3 | . . 3 . . Largest Group 3 | . . 3 3 . Highest-Rated Group 40 | . . 40 40 . Highest-Rated Ally 16 | . . 16 16 . Total Orders . | . . . . . Ally Attacks 42 | . . . 42 . Total Damage 487 | . . . 487 . Kills 10 | . . . 10 . Allies Corrupted . | . . . . . Allies Melted . | . . . . . Intel | -11 -10 -10 -9 -8 ------- Run | Yrd Mat Min Mat Mat Active Infowar (turns) 962 | 48 70 397 326 121 Terrain 121 | . . . . 121 Traps 107 | . . . . 107 Seismic 841 | 48 70 397 326 . Robot Analysis Total . | . . . . . Derelict Logs Recovered 2 | . . 2 . . Drone Launches . | . . . . . Drone Recoveries . | . . . . . Exploration | -11 -10 -10 -9 -8 ------------- Run | Yrd Mat Min Mat Mat Turns Passed 1409 | 139 70 397 326 477 Spaces Moved 719 | 70 43 244 165 197 Core 97 | 3 . . . 94 Treads 212 | 67 43 102 . . Legs . | . . . . . Wheels 8 | . . . . 8 Hover . | . . . . . Flight 402 | . . 142 165 95 Fastest Speed 50 | 50 160 117 117 80 Average Speed 161 | 155 160 134 173 188 Slowest Speed 350 | 160 160 160 197 350 Overloaded Moves . | . . . . . Propulsion Burnouts . | . . . . . Robots Hopped . | . . . . . Potential Cave-ins . | . . . . . Cave-ins Triggered . | . . . . . Exploration Rate (%) 22 | 4 18 58 18 15 Regions Visited 4 Branch Regions 1 Pre-discovered Areas 1 | . . 1 . . Known Exits Taken . | . . . . . Unknown Exits Taken 4 | 1 1 1 1 . Scrap Searched 1 | . . 1 . . Spaces Dug . | . . . . . Terrain Destroyed 22 | . . . . 22 Melee . | . . . . . Projectile 2 | . . . . 2 AOE 20 | . . . . 20 Terrain Rammed . | . . . . . Walls Destroyed . | . . . . . Machines Disabled . | . . . . . Actions | -11 -10 -10 -9 -8 --------- Run | Yrd Mat Min Mat Mat Total 861 | 88 43 278 195 257 Wait 34 | . . . 21 13 Move 715 | 69 42 243 164 197 Hop . | . . . . . Pick Up 14 | 6 . 7 . 1 Fast Attach 18 | 6 . . 2 10 Attach 7 | 1 . 2 2 2 Detach 1 | . . . . 1 Swap 1 | . . . . 1 Drop 6 | . . 4 . 2 Fire 57 | 6 1 22 6 22 Melee 7 | . . . . 7 Ram 1 | . . . . 1 Kick . | . . . . . Crush . | . . . . . Escape Stasis . | . . . . . Rewire . | . . . . . Trap . | . . . . . Miscellaneous . | . . . . . Route ------- -11/Scrapyard -10/Materials -10/Mines -9/Materials -8/Materials History --------- Turn | Location | Event 38 | -11/Scrapyard | Discovered new exit (range 16) 140 | -11/Scrapyard | Entered Materials 175 | -10/Materials | Discovered new exit (range 14) 210 | -10/Materials | Entered Mines 304 | -10/Mines | Build established: Mutant 369 | -10/Mines | Learned location of Zion (-6) 369 | -10/Mines | Assisted by bots powering up and referring to "LRC-V3" 401 | -10/Mines | Found a damaged Exp. Sensor Array with a note attached 417 | -10/Mines | Found Prototype Device 521 | -10/Mines | Learned Materials stockpile data 595 | -10/Mines | Discovered new exit (range 5) 607 | -10/Mines | Entered Materials 607 | -9/Materials | Accompanied by 3 allies 607 | -9/Materials | Evolved 2 slots: Utility x2 919 | -9/Materials | Discovered new exit (range 3) 933 | -9/Materials | Entered another Materials area 933 | -8/Materials | Evolved 2 slots: Propulsion x2 954 | -8/Materials | Build established: Scavenger-Mutant 1156 | -8/Materials | Core integrity fell below 50% 1171 | -8/Materials | Core integrity fell below 20% 1196 | -8/Materials | Lost 11 parts (1p4n3u3w) 1410 | -8/Materials | Destroyed by G-47 Trooper with Particle Gun Last Messages --------------- 01216_ K-01 Serf cleans the Nuclear Reactor. 01222_ Acquired System Shield. 01232_ O-16 Technician: "IFF HANDSHAKE FAILED. SECURING TERMINAL." 01236_ O-16 Technician destroyed. 01252_ Acquired 10 matter. 01254_ Acquired data core, extracted dynamic key. 01258_ Acquired Datajack. 01289_ Acquired Imp. Terrain Scanner. 01303_ Acquired Trap Scanner. 01365_ Acquired Lgt. Deuterium Engine. 01393_ G-50 Soldier knocked back. 01398_ Adv. Beam Rifle destroyed. 01398_ Critical hit (Burn: +37). 01403_ G-50 Soldier knocked back. 01404_ Lgt. Deuterium Engine destroyed. 01406_ Assault Cannon destroyed. 01406_ Critical hit (Burn: +37). Map ----- +----------------------------------------------------+ | ???????????????????????????????????????? | | ???????????????????????????????????????? | | ???????????????????????????????????????? | | ???????????????????????????????????????? | | ???????????????????????????????????????? | | ???????????????????????????????????????? | | ???????????????????????????????????????? | | ???????????????????????????????????????? | | ????????????????????????H??????????????? | | ???????????????????????????????????????? | | ???????????????????????????????????????? | | ??????????????????#????????????????????? | | ???????????????????????????????????????? | | ???????????????????????????????????????? | | ?????????????????"?????????????????????? | | ???????????????????????????????????????? | | ???????????#???????????? ?????????????? | | ????????????#????? ??????? #???????????? | | ?#?#??????#??#??????????? #???????????? | | ???#?#??????????????????? #???????????? | | ???????????????????##??? #???????????? | | #?????????????????????? #???????????? | | ?????################## #???????????? | | ?????# # #???????????? | | ????## # k #???????????? | | #????# #@ #??#????????? | | ?????# gg%% #???? ??????? | | ???### g #???????????? | | ???#?# %# u #???? ??????? | | ?????# ### #???????????? | | ?????# #?# #### #???????????? | | #?#??# #?# #??# #???????????? | | ?????############+#### #???????????? | | ???????????# # #???????????? | | ??##???????# [ " # #???????????? | | #??????????# T # #???????????? | | ???????????# """ " # #######??? # | | ??????#????# """ # % ??? | | ???#????#??# """ ! # ????? | | ???????????# # #??????? | | ???#?#?????# # #??????????? | | ??????????#######+#### ###########? | | ?????????#????# # ! #? | | ???????? ?? ?# # ! #? | | ??????????????# """ """ + ! #? | | ????#???????? # """ """ # ## | | ???????"?"????# """ """ ## """ " " + | | ??????????????# ## """ "R" ## | | ????? ???"????# ## """ """ #? | | ??????"???????#! """ """ + #? | +----------------------------------------------------+ Best States ------------- Heat Dissipation 31 Energy Generation 14 Energy Capacity 275 Matter Stores 300 Matter Capacity 300 Sight Range 16 Terrain Scan Range 16 Terrain Scan Density 10 Armor Coverage 150 Power Shielding 66 Evasion (%) 44 Recoil Reduction 2 Defensive Hacking 10 Item Schematics ----------------- None Robot Schematics ------------------ None Fabricated ------------ Nothing Repaired ---------- Nothing Studied --------- None Alien Tech Used ----------------- None Achievements -------------- None Challenges ------------ None Game ------ Seed PotentialXenonPlatform Manual? 0 Play Time 00:12:20 Cumulative 63.7 hours Start 2026.03.13 @ 19:34:34 End 2026.03.13 @ 21:13:18 Sessions 1 Manual Loads 0 Difficulty Rogue Special Mode None Game No. 147 Rogue 147 Adventurer 0 Explorer 0 Win Type - Total 0 Types 0/0/0/0/0/0/0/0/0/0 Lore% 37 Gallery% 42 Achievement% 34 Wizard Run 0 Options --------- Layout 2 ASCII 0 Keyboard 1 Movement Arrows Keybinds 0 Fullscreen 1 Font 24/Smallcaps Map View 50x44 Zoom Use 0% Tactical HUD 1 Map Filters NONE Filters NONE Steam 1 RUN: 42780efe-252e-414b-bc1e-7e8b0a67b08b